Cogmind - Beta 15 @@@ ROGUE MODE // 2025.09.11 @ 09:56:54 Player: the Result: Destroyed by DAS Turret with DAS Cannon Performance ------------- Evolutions (0) 0 Regions Visited (3) 600 Robots Destroyed (46) 230 Value Destroyed (754) 754 Prototype IDs (6) 120 Alien Tech Used (0) 0 Bonus (300) 300 TOTAL SCORE: 2004 Bonus ------- Aligned with FarCom 300 Cogmind --------- Core Integrity 0/250 Matter 155/300 Energy 140/140 System Corruption 1% Temperature Cool (0) Movement Walking (190) Ox1 Location -10/Exiles Parts ------- > --- POWER (1) -------- Light Deuterium Engine > --- PROPULSION (2) --- Aluminum Leg Aluminum Leg (fused) > --- UTILITY (2) ------ Large Storage Unit Thief Drone Bay (1/3) > --- WEAPON (2) ------- Improved Light Cannon > --- INVENTORY (15) --- Improved Ion Engine Improved Ion Engine Aluminum Leg Aluminum Leg Carbon-fiber Leg Carbon-fiber Leg Improved Heat Sink Seismic Detector Tractor Beam 8R-AWN's Boregun 8R-AWN's Boregun Improved Light Cannon Mining Laser Peak State ------------ > --- POWER ------------ Light Deuterium Engine > --- PROPULSION ------- Aluminum Leg Aluminum Leg > --- UTILITY ---------- Large Storage Unit Thief Drone Bay > --- WEAPON ----------- 8R-AWN's Boregun Improved Light Cannon > --- INVENTORY -------- Improved Ion Engine Improved Ion Engine Aluminum Leg Aluminum Leg Carbon-fiber Leg Carbon-fiber Leg Improved Heat Sink Seismic Detector Tractor Beam 8R-AWN's Boregun Improved Light Cannon Grenade Launcher Mining Laser [Rating: 28] Favorites ----------- Power Improved Ion Engine Engine Improved Ion Engine Power Core Light Nuclear Core Propulsion Aluminum Leg Leg Aluminum Leg Utility Large Storage Unit Device Seismic Detector Storage Large Storage Unit Weapon Improved Light Cannon Energy Gun Medium Laser Ballistic Gun 8R-AWN's Boregun Ballistic Cannon Improved Light Cannon Launcher Grenade Launcher Special Weapon Mining Laser Build | -11 -10 -10 -10 ------- Run | Yrd Mat Min Exi Slots Evolved . | . . . . Power . | . . . . Propulsion . | . . . . Utility . | . . . . Weapon . | . . . . Parts Attached 36 | 7 17 9 3 Power 5 | 1 2 2 . Engine 4 | 1 2 1 . Core 1 | . . 1 . Reactor . | . . . . Propulsion 9 | 2 3 4 . Treads . | . . . . Leg 9 | 2 3 4 . Wheel . | . . . . Hover . | . . . . Flight . | . . . . Utility 11 | 2 7 2 . Device 7 | 1 4 2 . Storage 4 | 1 3 . . Processor . | . . . . Hackware . | . . . . Protection . | . . . . Artifact . | . . . . Weapon 11 | 2 5 1 3 Energy Gun 2 | 2 . . . Energy Cannon . | . . . . Ballistic Gun 1 | . . . 1 Ballistic Cannon 4 | . 2 . 2 Launcher 3 | . 2 1 . Special Weapon 1 | . 1 . . Impact Weapon . | . . . . Slashing Weapon . | . . . . Piercing Weapon . | . . . . Special Melee Weapon . | . . . . Unidentified Prototypes 2 | . . 1 1 Parts Lost 3 | . 1 1 1 Power . | . . . . Propulsion 1 | . 1 . . Utility 1 | . . 1 . Weapon 1 | . . . 1 Highest Loss Streak 1 | . 1 1 1 To Critical Strikes 1 | . 1 . . Average Backups 13 | 1 14 14 13 Power 2 | . 2 2 3 Propulsion 2 | . 1 3 4 Utility 3 | . 3 2 3 Weapon 5 | . 6 6 3 Tool/Special . | . . . . Unused Backups 21 | 3 5 1 12 Power 6 | . 1 . 5 Propulsion 2 | . . . 2 Utility 8 | 2 3 1 2 Weapon 5 | 1 1 . 3 Tool/Special . | . . . . Average Slot Usage (%) 93 | . 99 99 76 Engine 12 | . 14 10 14 Core 1 | . . 3 . Leg 27 | . 27 28 28 Device 13 | . 14 13 14 Storage 14 | . 14 14 14 Ballistic Cannon 19 | . 23 26 3 Special Weapon 1 | . 2 . . Peak Build Rating 28 | 7 13 19 28 Average Rating 11 | 3 11 13 11 On Entrance 8 | . 7 12 14 Naked Turns . | . . . . Heaviest Build 37 | 12 37 37 37 Greatest Support 30 | 20 20 30 20 Greatest Overweight (x) 2 | 2 1 1 1 Average Overweight (x) . | . . 1 1 Largest Inventory Capacity 15 | 8 15 15 15 Average Capacity 14 | 5 14 15 15 Most Carried 15 | 4 15 15 15 Average Carried 13 | 1 14 14 13 Final Capacity 15 | 8 15 15 15 Final Carried 15 | 4 15 15 13 Class Distribution -------------------- 100% | Mutant Dominant Class ---------------- Mutant | -10/Materials Mutant | -10/Mines Mutant | -10/Exiles Resources | -11 -10 -10 -10 ----------- Run | Yrd Mat Min Exi Matter Collected 2029 | 270 769 772 218 Remotely 800 | . 239 561 . Salvage Created 883 | 171 430 275 7 Parts 69 | 17 39 13 . Haulers Intercepted 2 | . 2 . . Recyclers Shooed 5 | . 4 1 . Parts Field Recycled . | . . . . Retrieved Matter . | . . . . Parts Self-Destructed . | . . . . Prevented . | . . . . Kills | -11 -10 -10 -10 ------- Run | Yrd Mat Min Exi Combat Hostiles Destroyed 42 | . 16 22 4 Cannons 19 | . 10 9 . AOE 23 | . 6 13 4 Classes Destroyed 9 | 2 6 1 . Worker 2 | . 2 . . Builder 1 | . 1 . . Tunneler 7 | 5 2 . . Hauler 2 | . 2 . . Recycler 4 | 1 2 1 . Watcher 2 | . 2 . . Swarmer 20 | . 12 8 . Grunt 8 | . 4 4 . Assembled 14 | . . 10 4 Best Kill Streak 6 | 4 6 6 4 Combat Bots Only 6 | . 4 6 4 Max Kills in Single Turn 3 | 1 2 3 2 Gunslinging . | . . . . Exploded 3 | . 2 3 2 Melee . | . . . . Uniques/NPCs Destroyed . | . . . . Combat | -11 -10 -10 -10 -------- Run | Yrd Mat Min Exi Hostile Shots Fired 181 | . 105 62 14 Missed 57 | . 31 22 4 Hits 124 | . 74 40 10 Melee 1 | . . 1 . Projectile 123 | . 74 39 10 AOE 3 | . . 3 . Critical Strikes 1 | . 1 . . Part Disruptions 1 | . . . 1 Damage Taken 1332 | . 482 522 328 Core 250 | . 62 117 71 Absorbed by Shields 200 | . 175 25 . Regen/Repaired (Parts) 116 | . 116 . . Core Remaining (%) 100 | 100 . . . Volleys Fired 144 | 7 69 43 25 Largest 2 | 2 2 2 1 Hottest 100 | 90 100 66 33 Shots Fired 250 | 14 127 84 25 Gun 14 | 14 . . . Cannon 195 | . 116 72 7 Launcher 35 | . 5 12 18 Special 6 | . 6 . . Kinetic 195 | . 116 72 7 Thermal 20 | 14 6 . . Explosive 35 | . 5 12 18 Electromagnetic . | . . . . Robot Hit Streak 8 | 7 8 4 7 Robot Miss Streak 7 | 2 7 3 1 Penetration Max . | . . . . Secondary Targets . | . . . . Shots Hit Robots 94 | 9 45 32 8 Core Hits 85 | 7 28 35 15 Critical Kills . | . . . . Critical Parts Destroyed . | . . . . Critical Strikes 4 | . 3 1 . Blast 4 | . 3 1 . Melee Attacks . | . . . . Impact . | . . . . Slashing . | . . . . Piercing . | . . . . Sneak Attacks . | . . . . Combat Hostiles . | . . . . Follow-up Attacks . | . . . . Damage Inflicted 3795 | 105 1476 1542 672 Guns 105 | 105 . . . Cannons 1910 | . 1220 606 84 Explosions 1738 | . 214 936 588 Melee . | . . . . Ramming 42 | . 42 . . Kinetic 1910 | . 1220 606 84 Thermal 284 | 105 . 179 . Explosive 1559 | . 214 757 588 Electromagnetic . | . . . . Impact . | . . . . Slashing . | . . . . Piercing . | . . . . Highest Corruption 1 | . . 1 1 Average Corruption 1 | . . 1 1 Corruption Purged . | . . . . Corruption Blocked . | . . . . Effects 19 | . . 9 10 Message Errors 1 | . . 1 . Matter Fused 9 | . . 5 4 Heat Flow Errors 2 | . . . 2 Parts Fused 1 | . . . 1 Data Loss (minor) 2 | . . 1 1 Data Loss (major) 3 | . . 1 2 Misfires 1 | . . 1 . Overload Shots . | . . . . Overflow Damage 52 | . 1 51 . Projectiles 21 | . 1 20 . Explosions 31 | . . 31 . Melee . | . . . . Knockbacks 23 | . 16 6 1 Impact . | . . . . Kinetic 21 | . 15 5 1 Secondary 2 | . 1 1 . Self-Inflicted Damage 99 | . . 61 38 Shots 5 | . . 3 2 Rammed . | . . . . Targets Rammed 8 | . 8 . . Kicked 8 | . 8 . . Crushed . | . . . . Highest Temperature 281 | 60 281 77 221 Average Temperature 54 | 28 71 21 97 Received Heat Transfer 207 | . 80 107 20 Effects 1 | . 1 . . Energy Bleed 1 | . 1 . . Siege Activations . | . . . . Martial Activations . | . . . . Shielding Activations . | . . . . Robots Disrupted . | . . . . Combat Hostiles . | . . . . Robots Corrupted . | . . . . Combat Hostiles . | . . . . Parts Fried . | . . . . Impact Corruptions . | . . . . Robots Melted . | . . . . Combat Hostiles . | . . . . Parts Melted 1 | 1 . . . Heat Transferred 461 | 261 . 200 . Parts Sabotaged . | . . . . Parts Stolen . | . . . . Parts Stripped . | . . . . Power Chain Reactions . | . . . . Alert | -11 -10 -10 -10 ------- Run | Yrd Mat Min Exi Maximum Alert Level 1 | . 1 1 . Low Security (%) 60 | 100 35 90 . Level 1 39 | . 64 9 . Level 2 . | . . . . Level 3 . | . . . . Level 4 . | . . . . Level 5 . | . . . . High Security . | . . . . Max Security . | . . . . Peak Influence 339 | 15 339 225 . Initial 97 | . . 97 . Average 157 | 2 181 137 . Influence Increases 1181 | 30 626 525 . Destroy 0b10 Robot/C 560 | . 320 240 . Destroy 0b10 Robot/NC 90 | 30 55 5 . Destroy Leader 118 | . 78 40 . Successful Hack 22 | . 22 . . Disable Machine 210 | . 75 135 . Destroy Structure 136 | . 31 105 . Lose Combat Pursuer 45 | . 45 . . Influence Decreases 1181 | 30 375 714 62 Entered New Map 216 | . . 154 62 Time Decay 945 | 30 365 550 . Lost Part 20 | . 10 10 . Squads Dispatched 4 | . 4 . . Investigation 3 | . 3 . . Extermination . | . . . . Reinforcement 1 | . 1 . . Assault . | . . . . Garrison . | . . . . Intercept . | . . . . Searches Triggered . | . . . . Construction Impeded . | . . . . Haulers Reinforced . | . . . . Active Scanning Responses . | . . . . Cargo Convoy Interrupts . | . . . . Stealth | -11 -10 -10 -10 --------- Run | Yrd Mat Min Exi Distress Signals 2 | . 2 . . Communications Jammed . | . . . . Distress Signals . | . . . . Times Spotted 64 | . 28 29 7 Peak Tracking Total 9 | . 7 6 9 Tactical Retreats 4 | . 3 1 . Traps | -11 -10 -10 -10 ------- Run | Yrd Mat Min Exi Traps Triggered 1 | . 1 . . Indirectly . | . . . . Trap Hack Attempts . | . . . . Triggered . | . . . . Disarmed . | . . . . Reprogrammed . | . . . . Reused . | . . . . Traps Extracted . | . . . . Installed . | . . . . Triggered . | . . . . Machines | -11 -10 -10 -10 ---------- Run | Yrd Mat Min Exi Machines Disabled 20 | . 5 9 6 Max in Single Turn 4 | . 2 4 1 Machines Repaired . | . . . . Machines Dismantled . | . . . . Machines Sabotaged . | . . . . Overloaded Fab Kills . | . . . . Hacking | -11 -10 -10 -10 --------- Run | Yrd Mat Min Exi Machines Accessed 11 | . 9 1 1 Terminals 6 | . 6 . . Fabricators . | . . . . Repair Stations 1 | . 1 . . Recycling Units 2 | . 2 . . Scanalyzers . | . . . . Garrison Access . | . . . . Total Hacks 32 | . 30 1 1 Successful 15 | . 13 1 1 Failed 16 | . 16 . . Catastrophic 2 | . 2 . . Database Lockouts 1 | . 1 . . Manual 16 | . 16 . . Terminals 23 | . 23 . . Fabricators . | . . . . Repair Stations 5 | . 5 . . Recycling Units 2 | . 2 . . Scanalyzers . | . . . . Garrison Access . | . . . . Terminal Hacks 6 | . 4 1 1 Record 1 | . . . 1 Part Schematic 1 | . 1 . . Prototype ID Bank 2 | . 2 . . Open Door 1 | . . 1 . Terminal Index 1 | . 1 . . Fabricator Hacks . | . . . . Repair Station Hacks 4 | . 4 . . Scan Component 2 | . 2 . . Repair 2 | . 2 . . Recycling Unit Hacks 2 | . 2 . . Retrieve Components 2 | . 2 . . Scanalyzer . | . . . . Garrison Access Hacks . | . . . . Unauthorized Hacks 3 | . 3 . . Terminals 3 | . 3 . . Botnet 2 | . 2 . . Operators 1 | . 1 . . Fabricators . | . . . . Repair Stations . | . . . . Recycling Units . | . . . . Scanalyzers . | . . . . Garrison Access . | . . . . Data Cores Recovered . | . . . . Used . | . . . . Hacking Detections 8 | . 8 . . Full Trace Events 2 | . 2 . . Feedback Events . | . . . . Feedback Blocked . | . . . . Robot Schematics Acquired . | . . . . Robots Built . | . . . . Authchips . | . . . . Time . | . . . . Total Robot Build Rating . | . . . . Part Schematics Acquired 1 | . 1 . . Parts Built . | . . . . Authchips . | . . . . Time . | . . . . Total Part Build Rating . | . . . . Parts Repaired 2 | . 2 . . Time 64 | . 64 . . Parts Recycled . | . . . . Recycled Matter . | . . . . Retrieved Matter . | . . . . Retrieved Components 11 | . 11 . . Parts Scanalyzed . | . . . . Part Schematics Acquired . | . . . . Parts Damaged . | . . . . Bothacking | -11 -10 -10 -10 ------------ Run | Yrd Mat Min Exi Used RIF Installer . | . . . . Robots Hacked . | . . . . Non-combat . | . . . . Combat . | . . . . Robot Hacks Applied . | . . . . Relay Couplers Released . | . . . . Fabnet Peak Effective % . | . . . . Robots Rewired . | . . . . Allies Hacked . | . . . . Hacks Repelled . | . . . . Allies | -11 -10 -10 -10 -------- Run | Yrd Mat Min Exi Total Allies . | . . . . Largest Group . | . . . . Highest-Rated Group . | . . . . Highest-Rated Ally . | . . . . Total Orders . | . . . . Ally Attacks 14 | . . . 14 Total Damage 32 | . . . 32 Kills . | . . . . Allies Corrupted . | . . . . Allies Melted . | . . . . Intel | -11 -10 -10 -10 ------- Run | Yrd Mat Min Exi Active Infowar (turns) 2614 | 69 2033 512 . Seismic 2614 | 69 2033 512 . Robot Analysis Total . | . . . . Derelict Logs Recovered 1 | . . 1 . Drone Launches 5 | . . . 5 Drone Recoveries 3 | . . . 3 Exploration | -11 -10 -10 -10 ------------- Run | Yrd Mat Min Exi Turns Passed 5255 | 139 2227 1599 1290 Spaces Moved 2406 | 78 976 726 626 Core 47 | 47 . . . Treads . | . . . . Legs 2359 | 31 976 726 626 Wheels . | . . . . Hover . | . . . . Flight . | . . . . Fastest Speed 50 | 50 120 190 190 Average Speed 184 | 91 183 190 190 Slowest Speed 190 | 150 190 190 190 Overloaded Moves . | . . . . Propulsion Burnouts . | . . . . Robots Hopped . | . . . . Potential Cave-ins . | . . . . Cave-ins Triggered . | . . . . Exploration Rate (%) 64 | 4 98 93 63 Regions Visited 3 Branch Regions 2 Pre-discovered Areas 2 | . . 1 1 Known Exits Taken . | . . . . Unknown Exits Taken 3 | 1 1 1 . Scrap Searched 1 | . . 1 . Spaces Dug 37 | . 17 20 . Terrain Destroyed 169 | . 34 122 13 Melee . | . . . . Projectile 15 | . 8 7 . AOE 154 | . 26 115 13 Terrain Rammed . | . . . . Walls Destroyed . | . . . . Machines Disabled . | . . . . Actions | -11 -10 -10 -10 --------- Run | Yrd Mat Min Exi Total 2967 | 130 1269 861 707 Wait 241 | 28 132 53 28 Move 2403 | 77 975 725 626 Hop . | . . . . Pick Up 42 | 8 26 4 4 Fast Attach 16 | 6 4 2 4 Attach 6 | 1 1 1 3 Detach 6 | . 2 1 3 Swap 56 | . 32 22 2 Drop 45 | 3 20 10 12 Fire 144 | 7 69 43 25 Melee . | . . . . Ram . | . . . . Kick 8 | . 8 . . Crush . | . . . . Escape Stasis . | . . . . Rewire . | . . . . Trap . | . . . . Miscellaneous . | . . . . Route ------- -11/Scrapyard -10/Materials (discovered 5 exits: [*Mat x3] / *Min / [*Sub]) -10/Mines (discovered 3 exits: [*Mat x2] / *Exi) -10/Exiles History --------- Turn | Location | Event 4 | -11/Scrapyard | Discovered new exit (range 16) 140 | -11/Scrapyard | Entered Materials 338 | -10/Materials | Build established: Mutant 480 | -10/Materials | Discovered new exit (range 16) 940 | -10/Materials | Discovered new exit (range 8) 1040 | -10/Materials | Derelicts attacked the area 1137 | -10/Materials | Repaired Imp. Light Cannon 1170 | -10/Materials | Repaired Imp. Light Cannon 1292 | -10/Materials | Discovered new exit (range 12) 1881 | -10/Materials | Discovered new exit (range 11) 1917 | -10/Materials | Central database locked down 2067 | -10/Materials | Discovered new exit (range 5) 2367 | -10/Materials | Entered Mines 2391 | -10/Mines | Met a Derelict bent on vengeance 2408 | -10/Mines | Discovered new exit (range 14) 2741 | -10/Mines | Assembled infested the area 2785 | -10/Mines | Core integrity fell below 50% 3233 | -10/Mines | Found a Scrap Suit stashed away for nefarious purposes 3237 | -10/Mines | Learned 4 Materials zone layouts 3355 | -10/Mines | Learned location of Storage (-7) 3593 | -10/Mines | Found the Drone Emporium 3606 | -10/Mines | Found Prototype Device 3606 | -10/Mines | Identified Thief Drone Bay 3922 | -10/Mines | Discovered new exit (range 13) 3956 | -10/Mines | Deemed a non-threat by the Exiles lab entrance 3958 | -10/Mines | Discovered new exit (range 5) 3966 | -10/Mines | Entered Exiles 4013 | -10/Exiles | Met 8R-AWN 4042 | -10/Exiles | Met EX-HEX 4104 | -10/Exiles | Met EX-BIN 4129 | -10/Exiles | Met EX-DEC 4138 | -10/Exiles | Learned location of Zion (-6) 4640 | -10/Exiles | Aligned with FarCom system 4642 | -10/Exiles | Given EX-Vault access code 5067 | -10/Exiles | Attacked by the Exiles 5185 | -10/Exiles | Found 8R-AWN's Boregun 5253 | -10/Exiles | Core integrity fell below 20% 5256 | -10/Exiles | Destroyed by DAS Turret with DAS Cannon Last Messages --------------- 05163_ Thief Drone suffers critical hit (Destroy). 05164_ HV Slug penetrates Thief Drone. 05164_ Thief Drone suffers critical hit (Destroy). 05164_ Thief Drone destroyed. 05164_ HV Slug penetrates Wall. 05166_ Penetrated by HV Slug. 05167_ 8R-AWN Prototype Ballistic Gun ripped off. 05184_ Thief Drone delivers Prototype Ballistic Gun. 05184_ Thief Drone retrieved by Thief Drone Bay (repair cost: 2). 05185_ Identified 8R-AWN's Boregun. 05195_ Acquired 30 matter. 05201_ Acquired 8 matter. 05238_ Machine disabled. 05252_ Grenade Launcher destroyed. 05252_ Knocked back. Map ----- +----------------------------------------------------+ | ????????????????????????????????????????????? | | ?????????????????????????????????????????????? | | ??????????????????????????????????????????????# | | ??????????????????????????????????????????????# | | ??????????????????????????????????????????????# | | ??????????????????????????????????????????????# | | ??????????????????????????????????????????????# | | ?????????????????????????????????????????????## | | ?????????????#######?????????????????????????#" | | ######???????#!!! "#?????????????????????????#" | | #""#??????# "#?????????????????????????#" | | ??????# "#?????????????????????????#" | | ##???## "#????????????####?????????#" | | #####" ""#???????????? """????????#" | | #"" ""#????????????" """#???????## | | # #??????????????" #????????# | | ??# #?????????????"" #????????#" | | ?????# * ##????????????"" "#????????#" | | ?????## * "#???????????? ""?????????#" | | ###### #####?????????" "?????????##" | | !!"""" ;;#?????????# #????????##"" | | ! ## ;#####???### ###?######"" | | ! ] ] % % ""#####X# #"###""""""" | | ! ! # # """""" " "" | | !""""""######" # % "" """ " | | #########????##### %@ " " | | ?????????????????### | | ???????????????????### % | | ?????????????????????## | | ??????????????????????## | | ???????????????????????##" | | ????????????????????????# """""" | | ???????????????????????## ######" | | ???????????????????????#" ""##????## | | ???????????????????????#"" """##??????? | | ??????????????????????#""" """##???????? | | ??????????????????????#""" ""#????????? | | ??????????????????????#"" ########??# | | ??????????????????????#""" ## #### | | ??????????????????????#"" t """ | | ??????????????????????##"" | | ???????????????????????#"""" | | ???????????????????????## | | ????????????????????????#" " | | ????????????????????????#"""" ""## | | ????????????????????????#"" ""#### | | ????????????????????????#" """"##??# | | ????????????????????????#""" """#??## | | ????????????????????????## ""##??#! | | ?????????????????????????#"" """##???#" | +----------------------------------------------------+ Best States ------------- Heat Dissipation 25 Energy Generation 14 Energy Capacity 265 Matter Stores 300 Matter Capacity 300 Sight Range 16 Terrain Scan Density 10 Evasion (%) 55 Item Schematics ----------------- Hcp. Storage Unit | -10/Materials | Hacked Robot Schematics ------------------ None Fabricated ------------ Nothing Repaired ---------- Imp. Light Cannon | 51% | -10/Materials Imp. Light Cannon | 62% | -10/Materials Alien Tech Used ----------------- None Achievements -------------- None Challenges ------------ None Game ------ Seed AntimatterTransportCompanion Manual? 0 Play Time 00:29:43 Cumulative 317.3 hours Start 2025.09.11 @ 09:26:45 End 2025.09.11 @ 09:56:54 Sessions 1 Manual Loads 0 Difficulty Rogue Special Mode None Game No. 221 Rogue 221 Adventurer 0 Explorer 0 Win Type - Total 3 Types 3/0/0/0/0/0/0/0/0/0 Lore% 75 Gallery% 75 Achievement% 63 Wizard Run 0 Options --------- Layout 1 ASCII 0 Keyboard 0 Movement Mouse Keybinds 0 Fullscreen 1 Font 32/SmallcapsGlow Map View 50x35 Zoom Use 0% Tactical HUD 1 Map Filters NONE Filters NONE Steam 1 RUN: 292ac148-6abd-4752-ba36-fa3cdd7c1a9f